bitfinex/quotes_ETHUSD_20251012
["timestamp","ask_amount","ask_price","bid_price","bid_amount"]
[1760307468482,1.92,4149.0,4145.0,2.41254393]
[1760307468686,1.92,4149.0,4146.1,0.007]
[1760307468687,33.26981494,4148.9,4146.1,0.007]
[1760307468884,1.92,4148.4,4146.1,0.007]
[1760307469085,1.92,4148.0,4146.1,0.007]
[1760307469383,10.0514,4147.2,4146.1,0.007]
[1760307469716,1.19714,4147.1,4146.1,0.007]
[1760307469997,2.0654,4147.2,4146.1,0.007]
[1760307470321,2.41143987,4146.9,4146.1,0.007]
[1760307470503,2.41173065,4146.4,4146.1,0.007]
[1760307471300,4.47713065,4146.4,4146.1,0.007]
[1760307471618,5.14060849,4146.4,4146.1,0.007]
[1760307471763,5.28600849,4146.4,4146.1,0.007]
[1760307472100,2.72887784,4146.4,4146.1,0.007]
[1760307472391,2.04,4146.4,4146.1,0.007]
[1760307472585,4.59713065,4146.4,4146.1,0.007]
[1760307472891,4.59713065,4146.4,4146.2,0.6336]
[1760307473091,4.59713065,4146.4,4146.1,0.007]
[1760307474318,2.04,4146.4,4146.1,0.007]
[1760307474613,4.45173065,4146.4,4146.3,0.6356]
[1760307475113,2.04,4146.4,4146.3,0.6356]
[1760307475790,4.45173065,4146.4,4146.3,0.6356]
[1760307475988,5.28346141,4146.4,4146.3,0.6356]
[1760307476285,5.28346141,4146.4,4146.3,0.002]
[1760307476831,10.29223241,4146.4,4146.3,0.002]
[1760307477383,20.35088441,4146.4,4146.3,0.002]
[1760307477772,2.41202151,4145.9,4145.8,0.002]
[1760307477976,24.94454974,4145.9,4145.8,0.002]
[1760307478223,24.94454974,4145.9,4145.2,1e-08]
[1760307478224,2.41237063,4145.3,4145.2,1e-08]
[1760307478375,18.23017583,4145.2,4145.1,1e-08]
[1760307478698,17.54752883,4145.2,4145.1,1e-08]
[1760307479224,9.05904983,4145.2,4145.1,1e-08]
[1760307479389,11.51901391,4145.2,4145.1,1e-08]
[1760307479792,8.96274291,4145.2,4145.1,1e-08]
[1760307479981,6.50277883,4145.2,4145.1,1e-08]
[1760307480482,22.37415309,4144.2,4144.1,1e-08]
[1760307480676,4.33301095,4144.2,4144.1,1e-08]
[1760307480876,2.0662,4144.2,4144.1,1e-08]
[1760307481102,4.47921095,4144.2,4144.1,1e-08]
[1760307481306,4.92712658,4144.2,4144.1,1e-08]
[1760307482311,4.47921095,4144.2,4144.1,1e-08]
[1760307482882,18.24590295,4144.2,4144.1,1e-08]
[1760307483107,10.89658195,4144.2,4144.1,1e-08]
[1760307483302,6.92588095,4144.2,4144.1,1e-08]
[1760307483501,4.47921095,4144.2,4144.1,1e-08]
[1760307483677,5.16842486,4144.2,4144.1,1e-08]
[1760307483882,8.54085786,4144.2,4144.1,1e-08]
[1760307484126,5.16842486,4144.2,4144.1,1e-08]
[1760307485505,1.92,4144.2,4144.1,1e-08]
[1760307485706,2.55863572,4145.2,4144.2,0.6336]
[1760307485897,2.55863572,4145.2,4144.1,0.63360001]
[1760307485898,2.41271254,4144.8,4144.1,0.63360001]
[1760307486095,2.41237353,4145.3,4144.6,0.6336]
[1760307486423,0.24123735,4145.3,4144.8,0.6336]
[1760307486598,2.41225248,4145.6,4144.9,0.6336]
[1760307486794,2.41225248,4145.6,4144.1,0.23300001]
[1760307486795,0.1462,4145.7,4144.2,0.6336]
[1760307486995,2.41221033,4145.6,4144.9,0.6336]
[1760307487407,2.41221033,4145.6,4144.8,2.41261086]
[1760307487408,2.41226579,4145.5,4144.8,0.6336]
[1760307487610,0.1462,4145.4,4144.8,0.6336]
[1760307487793,2.4125538,4145.0,4144.2,3.04656553]
[1760307487998,2.41260443,4144.9,4144.2,3.04656553]
[1760307488337,0.12,4144.5,4144.2,0.6336]
[1760307488496,0.12,4144.8,4144.6,0.6336]
[1760307488830,0.1462,4144.7,4144.6,0.6336]
[1760307489155,2.41301095,4144.2,4144.1,1e-08]
[1760307489329,4.57431205,4144.2,4144.1,1e-08]
[1760307489533,4.72051205,4144.2,4144.1,1e-08]
[1760307489830,2.1613011,4144.2,4144.1,1e-08]
[1760307490332,4.72051205,4144.2,4144.1,1e-08]
[1760307490550,1.92,4144.2,4144.1,3.04666919]
[1760307490702,0.1462,4145.8,4144.8,0.6336]
[1760307491039,1.92,4145.4,4144.6,0.6336]
[1760307491243,0.2259,4145.9,4144.3,0.6336]
[1760307491446,2.41214302,4145.7,4145.0,0.6336]
[1760307491645,2.41215852,4145.7,4145.0,0.6336]
[1760307491802,4.33221345,4145.6,4144.9,0.6336]
[1760307492001,1.92,4145.6,4145.0,0.6336]
[1760307492447,4.33227196,4145.5,4144.9,0.6336]
[1760307492646,2.41227196,4145.5,4144.9,0.6336]
[1760307492798,0.24121585,4145.7,4144.8,0.6336]
[1760307493032,10.696678,4145.4,4144.1,1e-08]
[1760307493259,2.41285794,4144.5,4144.1,1e-08]
[1760307493456,2.41291559,4144.4,4144.1,1e-08]
[1760307493678,1.92,4144.6,4144.1,1e-08]
[1760307493679,0.1575,4145.4,4144.1,1e-08]
[1760307493878,2.41258669,4145.0,4144.4,0.6336]
[1760307494037,1.92,4145.2,4144.2,0.6336]
[1760307494239,2.41254813,4145.0,4144.4,0.6336]
[1760307494439,4.33260728,4144.9,4144.4,0.6336]
[1760307494687,2.41255911,4145.0,4144.4,0.6336]
[1760307494834,2.41283628,4144.5,4144.4,0.6336]
[1760307495033,1.92,4144.4,4144.1,1e-08]
[1760307495338,1.92,4145.2,4144.6,0.6336]
[1760307495658,1.92,4145.9,4144.1,1e-08]
[1760307495969,2.41207294,4145.9,4145.2,0.6336]
[1760307496267,2.41190516,4146.1,4145.2,0.6336]
[1760307496268,2.41216061,4145.7,4145.2,0.6336]
[1760307496468,0.372,4146.3,4145.2,2.41240519]
[1760307496667,1.92,4146.2,4145.2,0.6336]
[1760307496872,1.92,4146.0,4145.2,0.6336]
[1760307497170,2.41196333,4146.0,4145.3,0.6336]
[1760307497468,2.41167827,4146.5,4145.7,0.6336]
[1760307497669,2.4117279,4146.5,4145.7,0.6336]
[1760307497871,0.3699,4147.1,4146.1,0.6336]
[1760307498076,0.3699,4147.1,4146.2,0.6336]
[1760307498077,0.22899,4147.1,4146.2,0.6336]
[1760307498237,0.5965,4147.9,4146.7,0.6336]
[1760307498238,2.411156,4147.4,4146.7,0.6336]
[1760307498434,0.5965,4147.9,4146.8,3.04507853]
[1760307498781,2.41096872,4147.8,4147.0,0.6336]
[1760307499078,2.4110455,4147.6,4146.7,0.6336]
[1760307499442,0.3749,4147.9,4146.7,0.6336]
[1760307499654,0.3749,4147.9,4146.6,2.41156788]
[1760307499655,0.3673,4147.8,4146.2,0.6336]
[1760307499836,0.005,4147.9,4145.9,0.214]
[1760307500038,0.001,4146.4,4146.3,3.04538125]
[1760307500236,0.001,4146.4,4146.3,0.6336]
[1760307502288,0.11959246,4146.6,4146.4,0.6336]
[1760307502597,0.11959246,4146.6,4146.2,0.6336]
[1760307503361,2.03959246,4146.6,4146.0,0.6336]
[1760307503565,0.11959246,4146.6,4146.2,0.6336]
[1760307503891,2.03959246,4146.6,4146.0,0.6336]
[1760307504073,0.11959246,4146.6,4146.2,0.6336]
[1760307504274,0.11959246,4146.6,4146.0,0.6336]
[1760307504474,0.001,4146.8,4146.6,0.6336]
[1760307504786,0.001,4146.8,4146.7,3.04515617]
[1760307505710,0.001,4146.8,4146.7,0.6336]
[1760307506790,0.001,4146.8,4146.7,3.51075617]
[1760307507798,0.005,4147.9,4146.7,1.0992]
[1760307507964,0.005,4147.9,4147.1,0.6336]
[1760307508165,0.005,4147.9,4147.8,3.04451663]
[1760307508679,0.005,4147.9,4147.8,3.51011663]
[1760307510095,0.005,4147.9,4145.8,12.77398025]
[1760307510096,0.005,4147.9,4147.1,2.41132357]
[1760307510265,0.005,4147.9,4146.3,0.4656]
[1760307510266,0.24158029,4147.8,4146.3,0.4656]
[1760307510600,0.2675,4147.8,4146.4,2.41168084]
[1760307510914,0.2675,4147.8,4146.5,0.6336]
[1760307511404,0.2675,4147.8,4146.3,0.4656]
[1760307511405,2.41115353,4147.4,4146.6,2.41161119]
[1760307511608,1.92,4147.3,4146.7,0.6336]
[1760307511902,1.92,4147.3,4143.4,2.41342475]
[1760307512108,2.4112728,4147.2,4146.4,2.41169809]
[1760307512308,2.4112728,4147.2,4146.5,2.41165945]
[1760307512488,1.925,4147.9,4146.5,0.4656]
[1760307512802,2.41097885,4147.7,4146.8,0.6336]
[1760307513105,0.28978446,4147.8,4146.7,0.4656]
[1760307513404,2.41097972,4147.7,4147.2,0.6336]
[1760307513772,0.2675,4147.6,4146.0,0.4656]
[1760307513973,1.92,4147.2,4145.7,0.214]
[1760307514174,1.92,4147.0,4145.7,0.214]
[1760307514479,1.92,4147.4,4146.5,0.6336]
[1760307514685,0.12,4147.2,4146.6,0.7536]
[1760307515079,1.92,4147.1,4146.6,0.12]
[1760307515280,2.53131993,4147.2,4146.6,0.12]
[1760307515281,0.44513199,4147.0,4146.7,0.6336]
[1760307515488,0.12,4147.2,4146.7,0.6336]
[1760307516703,0.005,4147.9,4147.2,0.6336]
[1760307516905,2.04,4147.5,4147.2,0.6336]
[1760307517083,0.12,4147.5,4147.0,0.6336]
[1760307517284,4.7041906,4147.5,4146.9,0.6336]
[1760307517480,0.12,4147.5,4146.9,0.6336]
[1760307517684,2.41134018,4147.1,4146.5,0.6336]
[1760307517884,2.04,4147.0,4146.5,0.6336]
[1760307518485,0.12,4147.0,4146.7,0.6336]
[1760307518718,0.12,4147.0,4146.5,3.0452561]
[1760307518917,0.12,4147.0,4146.5,0.6336]
[1760307519115,0.12,4147.0,4146.7,0.6336]
[1760307519318,0.12,4147.0,4146.9,0.6336]
[1760307519619,0.001,4147.2,4146.9,3.04503987]
[1760307520415,0.001,4147.2,4146.9,0.6336]
[1760307520914,0.001,4147.2,4146.8,0.6336]
[1760307521287,0.001,4147.2,4147.1,0.6336]
[1760307521714,0.001,4147.2,4147.0,2.41136497]
[1760307521715,0.001,4147.2,4146.8,3.04506056]
[1760307522100,0.071,4147.3,4146.8,3.04506056]
[1760307522300,0.071,4147.3,4147.0,3.04495886]
[1760307522495,0.071,4147.3,4147.0,0.6336]
[1760307523100,0.071,4147.3,4146.9,0.6336]
[1760307523303,0.071,4147.3,4146.9,3.04503235]
[1760307523721,0.071,4147.3,4146.9,3.04501772]
[1760307524123,0.071,4147.3,4146.9,0.6336]
[1760307524624,0.001,4147.7,4147.6,2.41103288]
[1760307524828,0.001,4147.7,4147.6,3.04463288]
[1760307525529,2.40964781,4150.0,4148.3,0.6336]
[1760307525729,2.41120105,4149.1,4148.5,0.6336]
[1760307525939,0.001,4149.1,4148.5,0.6336]
[1760307526227,0.001,4149.1,4148.5,3.04410155]
[1760307526528,0.001,4149.1,4148.6,3.50475171]
[1760307527098,1e-08,4149.1,4149.0,3.04381932]
[1760307527300,0.001,4149.4,4149.1,2.41012579]
[1760307527628,0.005,4149.9,4149.8,3.04335468]
[1760307528418,0.005,4149.9,4149.8,3.50405468]
[1760307528801,0.005,4149.9,4149.8,1.0943]
[1760307529002,0.005,4149.9,4149.8,3.50405468]
[1760307529512,0.005,4149.9,4149.8,0.6336]
[1760307529834,0.005,4149.9,4149.8,3.04335468]
[1760307530330,0.005,4149.9,4149.8,0.6336]
[1760307531508,2.41469661,4149.9,4148.6,0.4607]
[1760307531733,15.19333558,4149.7,4148.3,2.41058584]
[1760307531931,2.4102746,4149.0,4148.2,2.41063248]
[1760307532319,2.4102746,4149.0,4148.2,2.41067532]
[1760307532521,2.41035741,4148.8,4147.9,0.4607]
[1760307532721,0.1636,4149.6,4148.0,0.6336]
[1760307532920,1.92,4150.2,4148.7,0.6336]
[1760307533139,1.92,4150.2,4147.6,2.41100482]
[1760307533140,0.1629,4150.4,4149.3,0.6336]
[1760307533437,0.1629,4150.4,4149.0,0.6336]
[1760307533639,0.1629,4150.4,4148.8,0.4607]
[1760307533640,2.40990974,4149.6,4148.8,0.4607]
[1760307533810,0.005,4149.9,4148.9,0.6336]
[1760307534011,0.005,4149.9,4149.4,0.6336]
[1760307534220,0.005,4149.9,4148.9,0.6336]
[1760307534638,1.92,4149.7,4147.9,0.4607]
[1760307534842,2.40999263,4149.4,4148.6,2.41039485]
[1760307535040,2.41004129,4149.4,4148.8,0.6336]
[1760307535243,2.41005032,4149.3,4148.8,0.6336]
[1760307535441,2.41005032,4149.3,4148.7,0.6336]
[1760307535611,2.41005032,4149.3,4147.4,2.41112332]
[1760307535612,13.51213558,4149.9,4147.6,0.6336]
[1760307535818,2.41007903,4149.3,4148.4,0.6336]
[1760307536046,2.40982299,4149.7,4148.7,0.6336]
[1760307536248,0.005,4149.9,4148.9,0.6336]
[1760307536446,0.005,4149.9,4149.4,0.6336]
[1760307536752,0.005,4149.9,4147.4,2.41110683]
[1760307536753,2.40981275,4149.7,4148.8,0.002]
[1760307536911,2.3201,4149.9,4148.8,0.002]
[1760307536912,2.4099289,4149.5,4148.8,0.002]
[1760307537114,2.41011394,4149.2,4148.8,0.002]
[1760307537316,1.92,4149.5,4148.8,0.002]
[1760307537615,0.1629,4150.3,4148.8,0.002]
[1760307537616,0.1629,4150.3,4149.0,3.04381083]
[1760307537811,0.001,4150.4,4149.3,2.40999662]
[1760307538063,2.40949001,4150.3,4149.4,0.6336]
[1760307538263,2.40949001,4150.3,4149.3,2.41003931]
[1760307538264,0.001,4150.4,4149.6,0.6336]
[1760307538565,2.40953531,4150.2,4149.5,3.04352164]
[1760307538769,2.40953531,4150.2,4149.2,2.41009012]
[1760307538770,0.001,4150.4,4149.2,0.6336]
[1760307539065,2.40969622,4150.0,4149.3,0.6336]
[1760307539776,2.4157048,4149.9,4149.3,0.6336]
[1760307539941,0.006,4149.9,4149.4,0.6336]
[1760307540141,0.006,4149.9,4149.6,0.6336]
[1760307540341,0.006,4149.9,4149.6,3.04344714]
[1760307540535,0.006,4149.9,4149.5,0.6336]
[1760307540738,0.006,4149.9,4148.8,2.41232942]
[1760307540983,0.006,4149.9,4149.1,0.6336]
[1760307541184,0.006,4149.9,4149.4,0.6336]
[1760307541385,2.40975726,4149.8,4149.3,0.6336]
[1760307541535,2.4098832,4149.6,4149.3,0.6336]
[1760307541740,2.41012461,4149.2,4148.8,0.002]
[1760307541972,2.57288428,4149.5,4148.8,0.002]
[1760307541973,2.4101807,4149.1,4148.8,0.002]
[1760307542173,0.1629,4149.1,4148.8,0.002]
[1760307542341,7.49545242,4148.9,4148.8,0.002]
[1760307542676,2.41050982,4148.5,4148.4,0.002]
[1760307542876,2.41050982,4148.5,4145.8,0.002]
[1760307542877,2.41074226,4148.1,4145.8,0.002]
[1760307543169,1.92,4147.0,4145.8,0.002]
[1760307543546,14.40932565,4146.4,4145.8,0.002]
[1760307543775,6.79169473,4146.4,4145.8,0.002]
[1760307543991,10.30561873,4146.4,4145.8,0.002]
[1760307544152,15.802216,4146.2,4145.8,0.002]
[1760307544339,21.89409709,4145.9,4145.8,0.002]
[1760307544676,6.72336625,4145.5,4145.4,0.002]
[1760307545073,4.47495425,4145.5,4145.4,0.002]
[1760307545375,13.26788925,4145.5,4145.4,0.002]
[1760307545597,24.95234125,4145.5,4145.4,0.002]
[1760307545752,21.85596,4145.3,4144.1,0.00200001]
[1760307545953,4.3328945,4144.4,4144.1,0.00200001]
[1760307546189,15.757497,4144.0,4143.6,0.002]
[1760307546352,0.135,4144.3,4143.6,0.002]
[1760307546558,2.41330212,4143.7,4143.6,0.002]
[1760307546979,0.1369,4145.1,4143.6,0.002]
[1760307547172,0.12,4144.1,4143.6,0.6356]
[1760307547367,0.1369,4144.1,4144.0,0.6336]
[1760307547572,0.12,4144.1,4143.6,0.002]
[1760307547954,1.92,4144.0,4143.6,0.002]
[1760307548168,0.12,4144.1,4143.6,0.002]
[1760307548484,0.12,4144.1,4143.6,0.6356]
[1760307548981,0.12,4144.1,4143.6,0.002]
[1760307549313,0.12,4144.7,4144.4,0.6336]
[1760307550057,0.12,4145.2,4144.5,1.2254]
[1760307550366,0.12,4145.2,4144.7,3.04631705]
[1760307550566,0.12,4145.2,4144.9,0.6336]
[1760307551080,0.12,4145.2,4144.6,0.6336]
[1760307551477,15.6849531,4146.6,4144.6,0.6336]
[1760307551478,0.1379,4146.7,4144.7,0.4718]
[1760307551688,0.12,4145.8,4145.1,0.12]
[1760307552194,0.12,4145.8,4144.2,0.6336]
[1760307552195,1.92,4145.0,4144.2,0.6336]
[1760307552395,1.92,4145.0,4144.1,0.12]
[1760307552396,0.12,4144.8,4144.1,0.12]
[1760307552693,2.04,4144.1,4143.3,0.12]
[1760307552871,0.12,4144.1,4143.4,3.04706617]
[1760307553099,0.12,4144.1,4143.3,0.12]
[1760307553301,1.92,4144.0,4143.3,0.12]
[1760307553627,1.92,4144.0,4143.1,0.00200001]
[1760307553628,0.12,4143.7,4143.1,0.63560001]
[1760307553798,4.45330212,4143.7,4143.1,0.00200001]
[1760307553988,23.10512196,4143.7,4143.1,0.00200001]
[1760307554422,16.91103296,4143.7,4143.1,0.00200001]
[1760307555132,17.21376096,4143.7,4143.1,0.00200001]
[1760307555319,16.24276096,4143.7,4143.1,0.00200001]
[1760307555621,5.17263196,4143.7,4143.1,0.00200001]
[1760307555822,4.47210212,4143.7,4143.1,0.00200001]
[1760307556738,0.1388,4145.1,4143.9,0.6336]
[1760307557093,0.001,4145.5,4143.6,0.6356]
[1760307557339,2.41256902,4145.0,4144.4,0.6336]
[1760307557624,2.41249332,4145.1,4144.4,0.6336]
[1760307557817,2.41249332,4145.1,4144.3,2.41294232]
[1760307557818,2.41253392,4145.1,4144.3,0.6336]
[1760307558019,0.001,4145.5,4144.3,0.6336]
[1760307558229,2.41239031,4145.3,4144.2,3.04661095]
[1760307558410,2.41295273,4144.3,4143.6,0.002]
[1760307558611,2.41295312,4144.3,4143.6,0.6356]
[1760307558800,1.92,4144.4,4143.6,0.002]
[1760307558801,2.41319629,4143.9,4143.6,0.002]
[1760307559001,2.55182063,4144.2,4143.6,0.002]
[1760307559002,1.92,4144.0,4143.6,0.002]
[1760307559334,2.41330212,4143.7,4143.6,0.002]
[1760307559529,10.91279012,4143.7,4143.6,0.002]
[1760307559840,4.51876408,4143.7,4143.6,0.002]
[1760307560023,6.9320662,4143.7,4143.6,0.002]
[1760307560400,19.62208708,4143.7,4142.3,2.41411776]
[1760307560623,2.41358275,4143.3,4142.4,0.6336]
[1760307560827,2.41358275,4143.3,4142.4,3.04761376]
[1760307561000,2.41358275,4143.3,4142.6,0.6336]
[1760307561406,2.41349261,4143.4,4142.7,0.6336]
[1760307561830,2.45996408,4143.6,4142.8,0.6336]
[1760307562043,1.92,4143.6,4143.0,0.6336]
[1760307562407,2.41405948,4142.4,4140.3,2.88707482]
[1760307562719,2.41405948,4142.4,4140.0,0.2282]
[1760307562721,1.92,4142.0,4140.0,0.2282]
[1760307562919,1.92,4141.8,4140.6,2.41507492]
[1760307563146,0.5159,4141.9,4140.2,0.6956]
[1760307563443,0.0746,4143.2,4141.1,0.6386]
[1760307563614,1.92,4143.0,4141.7,0.6336]
[1760307563814,1.92,4143.0,4141.4,0.6336]
[1760307563815,2.41400985,4142.5,4141.4,0.6336]
[1760307564119,0.12,4142.1,4141.6,3.04811289]
[1760307564356,0.12,4142.1,4141.6,0.6336]
[1760307564638,0.12,4142.1,4142.0,0.6336]
[1760307564806,2.4135355,4143.3,4142.1,0.6336]
[1760307565006,1.92,4143.4,4142.7,0.6336]
[1760307565204,2.41360941,4143.2,4142.5,0.6336]
[1760307565510,2.16136094,4143.2,4142.5,3.04758246]
[1760307565716,0.24136094,4143.2,4142.5,3.04758246]
[1760307565933,2.41354021,4143.3,4142.7,0.6336]
[1760307566131,2.69284021,4143.3,4142.7,0.6336]
[1760307566333,2.41365252,4143.1,4142.0,0.6336]
[1760307566646,2.41411305,4142.4,4141.1,0.005]
[1760307566804,4.33411968,4142.3,4141.6,2.41451098]
[1760307567141,0.24141131,4142.4,4141.1,0.005]
[1760307567142,1.92,4142.4,4141.1,0.005]
[1760307567345,2.41436599,4141.9,4141.1,0.005]
[1760307567549,1.9764,4142.2,4141.1,0.005]
[1760307567550,0.0564,4142.2,4141.1,0.005]
[1760307567905,2.41433674,4142.0,4141.2,2.41474083]
[1760307568131,0.0564,4142.2,4141.3,2.41468792]
[1760307568334,0.30345788,4142.2,4141.4,2.41464127]
[1760307568533,2.41436542,4141.9,4141.1,0.005]
[1760307568735,2.41435011,4142.0,4141.3,0.6336]
[1760307569050,2.4142422,4142.1,4141.3,3.04827903]
[1760307569236,4.33429261,4142.0,4141.3,0.6336]
[1760307569440,2.41441832,4141.8,4141.3,0.6336]
[1760307569639,2.41441832,4141.8,4141.1,2.41980144]
[1760307569640,4.33429261,4142.0,4141.2,3.048353]
[1760307569835,0.70518744,4142.1,4141.1,0.005]
[1760307569836,2.4143934,4141.9,4141.1,2.41980747]
[1760307570038,1.92,4142.0,4141.2,3.04834403]
[1760307570238,1.92,4141.8,4141.1,0.005]
[1760307570438,1.92,4141.6,4141.1,0.005]
[1760307570647,2.4146885,4141.4,4141.1,0.005]
[1760307570830,0.0581,4141.5,4141.1,0.005]
[1760307571035,2.414759,4141.2,4141.1,0.005]
[1760307571232,2.47280754,4141.3,4141.1,0.005]
[1760307571434,0.0581,4142.8,4141.5,2.41458408]
[1760307571632,1.92,4142.6,4141.6,0.6336]
[1760307571862,0.43919272,4142.6,4141.9,0.6336]
[1760307572027,2.41400416,4142.5,4141.8,0.6336]
[1760307572240,2.41406579,4142.4,4141.8,0.6336]
[1760307572446,2.41410844,4142.4,4141.7,0.6336]
[1760307572643,1.92,4142.7,4141.7,0.6336]
[1760307572821,2.47193705,4142.8,4142.1,0.6336]
[1760307573021,2.47193705,4142.8,4141.7,0.6336]
[1760307573022,2.41389863,4142.7,4141.7,0.6336]
[1760307573226,2.41407294,4142.4,4141.5,0.6336]
[1760307573454,1.92,4142.7,4141.5,3.04817801]
[1760307573455,2.41401409,4142.5,4141.5,3.04817801]
[1760307573659,1.92,4142.7,4141.9,0.6336]
[1760307573957,5.2644967,4142.8,4141.9,0.6336]
[1760307574165,3.3444951,4142.8,4142.1,0.6336]
[1760307574367,1.92,4142.7,4142.1,0.6336]
[1760307574529,0.52644921,4142.7,4142.1,0.6336]
[1760307574729,2.4140962,4142.4,4141.8,0.6336]
[1760307574989,0.12,4141.7,4141.3,0.002]
[1760307575421,0.0616,4141.6,4141.3,0.002]
[1760307575831,0.0616,4141.5,4141.3,0.002]
[1760307576038,1.92,4141.7,4141.3,0.002]
[1760307576260,2.41449532,4141.7,4141.3,0.002]
[1760307576448,2.47612782,4141.6,4141.3,0.002]
[1760307576764,0.0616,4141.6,4141.3,0.002]
[1760307576973,0.0616,4141.5,4141.3,0.002]
[1760307577269,1.92,4141.8,4141.3,0.002]
[1760307577454,0.0616,4141.4,4141.3,0.002]
[1760307577773,2.47624239,4141.4,4141.3,0.002]
[1760307578369,24.77127539,4141.4,4141.3,0.002]
[1760307578570,17.16827439,4141.4,4141.3,0.002]
[1760307578783,17.75661847,4141.4,4141.3,0.002]
[1760307579328,28.71216647,4141.4,4141.3,0.002]
[1760307579667,22.84224095,4140.9,4140.8,0.002]
[1760307579831,2.41493395,4140.9,4140.8,0.002]
[1760307580028,2.47653395,4140.9,4140.8,0.002]
[1760307580231,2.41475642,4141.3,4140.8,0.002]
[1760307580466,2.41470349,4141.3,4140.8,0.002]
[1760307580638,1.92,4141.4,4140.8,0.002]
[1760307580833,2.4148041,4141.2,4140.8,0.002]
[1760307581062,2.41493395,4140.9,4140.8,0.002]
[1760307581266,20.06010495,4140.9,4140.8,0.002]
[1760307581465,18.79931995,4140.9,4140.8,0.002]
[1760307581862,17.48383195,4140.9,4140.8,0.002]
[1760307582055,19.47370067,4140.9,4140.8,0.002]
[1760307582262,15.27919767,4140.9,4140.8,0.002]
[1760307583174,6.38640267,4140.9,4140.8,0.002]
[1760307583374,28.24236267,4140.9,4140.8,0.002]
[1760307583739,10.18325667,4140.9,4140.8,0.002]
[1760307583944,6.38640267,4140.9,4140.8,0.002]
[1760307584144,1.9816,4140.9,4140.8,0.002]
[1760307584383,1.92,4140.9,4140.8,0.002]
[1760307584674,2.0242,4140.9,4140.8,0.002]
[1760307584980,4.43913395,4140.9,4140.8,0.002]
[1760307585344,2.0242,4140.9,4140.8,0.002]
[1760307585566,1.92,4140.9,4140.8,0.002]
[1760307587244,2.64368859,4141.9,4140.8,0.002]
[1760307587245,0.2293,4141.9,4140.8,0.002]
[1760307587450,2.41440548,4141.9,4140.9,0.6336]
[1760307587677,4.33429261,4142.0,4141.0,2.41486592]
[1760307587850,0.2281,4141.9,4141.1,0.6336]
[1760307588052,1.92,4141.8,4141.3,0.6336]
[1760307588266,2.41424057,4142.1,4141.3,0.6336]
[1760307588466,0.1054,4142.2,4141.2,0.6336]
[1760307588783,2.4144814,4141.7,4141.1,0.6336]
[1760307589281,0.8052474,4141.7,4140.8,0.002]
[1760307589482,0.12,4141.3,4140.9,0.6336]
[1760307589850,0.12,4141.3,4141.0,0.6336]
[1760307590247,0.12,4141.3,4140.9,3.0485138]
[1760307590453,0.12,4141.3,4141.1,0.6336]
[1760307590876,0.12,4141.3,4141.0,3.04844882]
[1760307591206,0.12,4141.6,4141.3,0.6336]
[1760307592205,0.12,4141.6,4140.9,0.12]
[1760307592206,0.12,4141.6,4141.0,0.6336]
[1760307592405,0.12,4141.6,4141.0,3.04846568]
[1760307592607,1.92,4141.4,4140.8,0.002]
[1760307592813,1.92,4141.1,4140.8,0.002]
[1760307593009,1.92,4140.9,4140.8,0.002]
[1760307593224,17.83825395,4140.9,4140.8,0.002]
[1760307593376,2.41516725,4140.5,4140.1,0.005]
[1760307593571,18.46269393,4140.5,4140.1,0.005]
[1760307593771,18.46269393,4140.5,4139.9,0.002]
[1760307593772,2.41545893,4140.0,4139.9,0.002]
[1760307594082,2.4160936,4139.0,4137.7,2.41679228]
[1760307594280,1.92,4139.8,4137.5,0.4679]
[1760307594499,2.41598836,4139.1,4137.5,0.4679]
[1760307594738,2.0321,4139.7,4138.2,0.2166]
[1760307595029,4.33575069,4139.5,4138.6,3.04986619]
[1760307595236,1.92,4139.5,4138.7,2.41616247]
[1760307595395,2.41547421,4140.0,4138.3,0.6336]
[1760307595595,2.52894654,4139.7,4138.6,0.6336]
[1760307595828,2.41575069,4139.5,4138.6,0.6336]
[1760307596036,2.41581222,4139.4,4138.6,0.6336]
[1760307596533,2.41581222,4139.4,4138.7,0.6336]
[1760307596746,0.1133,4139.7,4138.8,0.6336]
[1760307597028,2.66859112,4139.6,4138.8,0.6336]
[1760307597240,4.33575256,4139.5,4138.8,0.6336]
[1760307597551,1.92,4139.9,4138.9,0.6336]
[1760307597710,0.1133,4140.4,4139.1,0.6336]
[1760307597902,2.4155038,4140.0,4139.2,0.6336]
[1760307598097,2.41553051,4139.9,4139.2,0.6336]
[1760307598296,0.1133,4140.4,4139.1,0.6336]
[1760307598297,2.41558521,4139.8,4139.1,0.6336]
[1760307598504,2.4158293,4139.4,4139.1,0.6336]
[1760307598720,4.33597465,4139.2,4138.2,2.41650959]
[1760307599033,1.92,4139.2,4138.4,2.41634388]
[1760307599231,1.92,4139.2,4138.5,2.41628931]
[1760307599410,2.41587315,4139.3,4138.5,2.41628931]
[1760307599594,2.41587315,4139.3,4138.1,2.42151456]
[1760307599595,2.41587315,4139.3,4138.6,0.6336]
[1760307599796,2.41598415,4139.1,4138.1,0.005]
[1760307600033,1.92,4138.9,4138.1,0.005]
[1760307600230,1.92,4138.7,4138.1,0.005]
[1760307600410,2.4163928,4138.4,4138.1,0.005]
[1760307600739,1.92,4138.3,4138.1,0.005]
[1760307600923,2.41592578,4139.2,4138.1,0.005]
[1760307601245,2.41620989,4138.8,4138.4,0.6336]
[1760307601546,2.41624297,4138.7,4138.1,0.005]
[1760307601846,2.41650959,4138.2,4138.1,0.005]